fUST/lending_fUST_20251017
["ID","MTS","AMOUNT","RATE_DAILY","PERIOD"]
[391530347,1760633441166,-500.0,0.00049315,120]
[391530348,1760633441175,-643.62,0.00049315,120]
[391530349,1760633441184,-500.0,0.00049315,120]
[391530350,1760633441194,-343.73702116,0.00049315,120]
[391530351,1760633441204,-500.0,0.00049315,120]
[391530353,1760633441213,-500.0,0.00049315,120]
[391530354,1760633441223,-500.0,0.00049315,120]
[391530355,1760633441232,-500.0,0.00049315,120]
[391530356,1760633441241,-500.0,0.00049315,120]
[391530358,1760633441250,-500.0,0.00049315,120]
[391530359,1760633441259,-500.0,0.00049315,120]
[391530360,1760633441268,-387.24,0.00049315,120]
[391530361,1760633441277,-444760.77900652,0.00049444,30]
[391530363,1760633441304,-22100.2,0.00049444,30]
[391530364,1760633441315,-1352.875,0.00049444,30]
[391530365,1760633441330,-384.46467,0.00049444,30]
[391530456,1760633443927,-200.813233,0.00047444,120]
[391530457,1760633443937,-500.0,0.00049315,120]
[391530459,1760633443947,-223545.24003995,0.00049444,30]
[391530531,1760633446664,-12175.17353996,0.00049444,30]
[391530532,1760633446676,-1079.0,0.00049444,30]
[391530537,1760633446877,-20971.57528589,0.00049444,30]
[391530538,1760633446890,-6155.22593749,0.00049444,30]
[391530540,1760633446902,-566.07,0.00049444,30]
[391536919,1760633999805,150.0,0.00025205,2]
[391536920,1760634000205,172.5,0.00025805,2]
[391536921,1760634000785,195.0,0.00026405,2]
[391536923,1760634280371,2996.09,0.00029041,120]
[391536924,1760634428146,-217.5,0.00027005,2]
[391536925,1760634428167,-240.0,0.00027605,2]
[391536926,1760634428187,-262.5,0.00028205,2]
[391536927,1760634428207,-285.0,0.00028805,2]
[391536928,1760634428228,-163.163466,0.00029216,20]
[391536929,1760634428249,-7.62344018,0.00029405,2]
[391536931,1760634444322,417.15472785,0.00027,2]
[391536938,1760634469975,1668.6189114,0.00027,2]
[391536939,1760634563103,-299.87655982,0.00029405,2]
[391536940,1760634563123,-150.0,0.00029889,2]
[391536941,1760634563149,-392.28,0.00029978,2]
[391536942,1760634563171,-330.0,0.00030005,2]
[391536943,1760634563194,-1376.3525931,0.00030053,2]
[391536944,1760634563216,-249.0,0.00030207,7]
[391536945,1760634563240,-249.0,0.00030259,2]
[391536946,1760634563265,-1200.0,0.00030345,2]
[391536947,1760634563285,-400.0,0.00030345,2]
[391536948,1760634563306,-300.0,0.00030346,2]
[391536949,1760634563325,-300.0,0.00030346,2]
[391536950,1760634563345,-4843.17336546,0.00030346,2]
[391536951,1760634563364,-309.500763,0.00030347,30]
[391536952,1760634563386,-248.0,0.00030364,2]
[391536953,1760634563406,-248.0,0.00030419,7]
[391536954,1760634563428,-248.0,0.00030557,2]
[391536955,1760634563448,-249.0,0.00030603,7]
[391536956,1760634563467,-352.5,0.00030605,2]
[391536957,1760634563488,-248.0,0.00030762,7]
[391536958,1760634563511,-179.65864857,0.00030805,6]
[391536959,1760634563531,-1504.06,0.00031,2]
[391536960,1760634563551,-310.28,0.00031,2]
[391536961,1760634563572,-248.0,0.00031077,2]
[391536962,1760634563591,-192.77622778,0.000311,2]
[391536963,1760634563611,-194.02089483,0.000311,2]
[391536964,1760634563631,-34.7987639,0.000311,2]
[391536965,1760634615635,150.0,0.00025205,2]
[391536966,1760634615999,176.14219844,0.00025805,2]
[391537012,1760634631761,-400.0,0.00031099,2]
[391537014,1760634631771,-176.22773651,0.000311,2]
[391537016,1760634631781,-164.71814017,0.000311,2]
[391537018,1760634631790,-160.00000002,0.000311,2]
[391537020,1760634631799,-578.20246302,0.000311,2]
[391537022,1760634631809,-175.38030048,0.000311,2]
[391537024,1760634631817,-1481.0741151,0.000311,2]
[391537026,1760634631827,-162.92617451,0.000311,2]
[391537028,1760634631836,-250.0,0.00031305,2]
[391537029,1760634631845,-164.761643,0.00031311,2]
[391537031,1760634631854,-211.02650041,0.000314,2]
[391537034,1760634631863,-164.71814017,0.000314,2]
[391537036,1760634631873,-578.20246302,0.000314,2]
[391537038,1760634631882,-175.38030048,0.000314,2]
[391537040,1760634631892,-1481.0741151,0.000314,2]
[391537042,1760634631902,-39.02227957,0.000314,7]
[391537046,1760634631918,-208.97772043,0.000314,7]
[391537048,1760634631928,-189.46788472,0.00031529,2]
[391537050,1760634631938,-211.02650041,0.000317,2]
[391537052,1760634631948,-94.77789459,0.000317,2]
[391537315,1760634637599,-194.02089483,0.000311,2]
[391537316,1760634637609,-194.02089483,0.000314,2]
[391537317,1760634637619,-483.42456843,0.000317,2]
[391537318,1760634637628,-175.38030048,0.000317,2]
[391537319,1760634637637,-1481.0741151,0.000317,2]
[391537320,1760634637647,-194.02089483,0.000317,2]
[391537321,1760634637656,-249.0,0.00031743,2]
[391537322,1760634637666,-248.0,0.00031824,7]
[391537323,1760634637676,-200.0,0.0003195,120]
[391537324,1760634637687,-249.0,0.00031979,2]
[391537325,1760634637696,-248.0,0.00032001,2]
[391537326,1760634637705,-578.20246302,0.000321,2]
[391537328,1760634637714,-1481.0741151,0.000321,2]
[391537329,1760634637724,-194.02089483,0.000321,2]
[391537330,1760634637733,-249.0,0.00032139,2]
[391537331,1760634637743,-248.0,0.00032353,2]
[391537332,1760634637752,-411.59477986,0.00032382,5]
[391537333,1760634637762,-248.0,0.00032386,2]
[391537334,1760634637771,-578.20246302,0.000324,2]
[391537335,1760634637780,-1481.0741151,0.000324,2]
[391537336,1760634637789,-300.0,0.00032629,7]
[391537337,1760634637799,-248.0,0.00032637,2]
[391537338,1760634637808,-248.0,0.00032648,2]
[391537339,1760634637820,-1004.797559,0.000327,10]
[391537340,1760634637829,-248.0,0.00032795,2]
[391537341,1760634637838,-248.0,0.00032826,7]
[391537342,1760634637848,-248.0,0.00032875,7]
[391537343,1760634637857,-340.70115031,0.00033125,2]
[391537344,1760634637867,-248.0,0.00033166,2]
[391537345,1760634637876,-248.0,0.00033198,2]
[391537346,1760634637886,-162.96164284,0.000332,117]
[391537347,1760634637895,-248.0,0.00033366,2]
[391537348,1760634637905,-300.0,0.0003345,30]
[391537349,1760634637914,-300.0,0.0003345,30]
[391537350,1760634637924,-300.0,0.0003345,30]
[391537351,1760634637933,-300.0,0.0003345,30]
[391537352,1760634637945,-300.0,0.0003345,30]
[391537353,1760634637954,-300.0,0.0003345,30]
[391537354,1760634637964,-300.0,0.0003345,30]
[391537355,1760634637974,-300.0,0.0003345,30]
[391537356,1760634637983,-300.0,0.0003345,30]
[391537357,1760634637993,-300.0,0.0003345,30]
[391537358,1760634638002,-300.0,0.0003345,30]
[391537359,1760634638013,-300.0,0.0003345,30]
[391537360,1760634638023,-300.0,0.0003345,30]
[391537361,1760634638032,-300.0,0.0003345,30]
[391537362,1760634638042,-300.0,0.0003345,30]
[391537363,1760634638052,-560.0,0.0003348,2]
[391537364,1760634638067,-600.0,0.00033829,30]
[391537365,1760634638078,-151.0,0.00033873,7]
[391537366,1760634638088,-254.75385999,0.00033928,7]
[391537367,1760634638098,-450.0,0.00035369,12]
[391537368,1760634638109,-347.0,0.00036043,2]
[391537369,1760634638120,-720.0,0.00037212,30]
[391537370,1760634638130,-1241.69,0.00037226,2]
[391537371,1760634638140,-631.0,0.00037278,2]
[391537372,1760634638150,-160.0,0.00037949,2]
[391537373,1760634638159,-150.0,0.00038109,17]
[391537374,1760634638170,-500.0,0.00038745,5]
[391537375,1760634638180,-500.0,0.00038745,5]
[391537376,1760634638190,-513.90260826,0.00038745,5]
[391537377,1760634638202,-534.29564079,0.00039293,5]
[391537378,1760634638212,-1000.0,0.00039293,5]
[391537379,1760634638222,-161.43731665,0.00039808,30]
[391537380,1760634638232,-1500.0,0.00039841,5]
[391537381,1760634638242,-161.43731665,0.0004011,30]
[391537382,1760634638251,-631.0,0.00040278,2]
[391537383,1760634638262,-2000.0,0.00040389,5]
[391537384,1760634638272,-161.43731665,0.00040411,30]
[391537385,1760634638282,-161.43731665,0.00040712,30]
[391537386,1760634638292,-864.0,0.00040934,90]
[391537387,1760634638301,-2500.0,0.00040937,5]
[391537388,1760634638311,-161.43731665,0.00041014,30]
[391537389,1760634638326,-161.43731665,0.00041315,30]
[391537390,1760634638336,-3000.0,0.00041485,10]
[391537391,1760634638346,-161.43731665,0.00041616,30]
[391537392,1760634638356,-161.43731665,0.00041918,30]
[391537393,1760634638366,-200.0,0.00042139,120]
[391537394,1760634638375,-200.0,0.00042139,120]
[391537395,1760634638385,-200.0,0.00042139,120]
[391537396,1760634638395,-627.59140934,0.00042899,2]
[391537397,1760634638404,-15058.92434653,0.00042899,2]
[391537398,1760634638414,-503.74782024,0.00042973,2]
[391537399,1760634638423,-502.74411963,0.00042973,10]
[391537400,1760634638433,-999.0,0.00042979,120]
[391537401,1760634638443,-33565.539158,0.0004298,3]
[391537402,1760634638453,-266.57564682,0.00042989,31]
[391537403,1760634638463,-500.0,0.00042989,2]
[391537404,1760634638473,-333.03894317,0.00042989,2]
[391537405,1760634638482,-500.0,0.00042989,120]
[391537406,1760634638491,-358.48198646,0.00042989,31]
[391537407,1760634638501,-100000.0,0.0004299,2]
[391537408,1760634638511,-68673.98194236,0.0004299,3]
[391537409,1760634638524,-297.2090077,0.0004299,3]
[391537410,1760634638535,-48508.19610294,0.0004299,3]
[391537411,1760634638544,-163.163466,0.00042999,3]
[391537412,1760634638555,-333551.01,0.00043,7]
[391537413,1760634638567,-1484.83,0.00043,14]
[391537414,1760634638577,-1129.19,0.00043,14]
[391537415,1760634638587,-505.39,0.00043,7]
[391537416,1760634638597,-159.380575,0.00043248,5]
[391537417,1760634638607,-163.163466,0.00043248,5]
[391537418,1760634638617,-209.52841335,0.00044359,120]
[391537419,1760634638626,-627.59140934,0.0004451,2]
[391537420,1760634638636,-1000.0,0.00045027,90]
[391537421,1760634638646,-1000.0,0.00046,120]
[391537422,1760634638656,-627.59140934,0.00046122,2]
[391537423,1760634638666,-15058.92434652,0.00046122,2]
[391537424,1760634638675,-16782.769579,0.00046126,4]
[391537425,1760634638684,-179.65865214,0.00046208,34]
[391537426,1760634638694,-1000.0,0.00047,120]
[391537427,1760634638703,-31511.3879,0.00047444,30]
[391537428,1760634638713,-1072149.44571678,0.00047444,30]
[391537429,1760634638725,-28558.59398322,0.00047444,30]
[391537430,1760634638735,-500.0,0.00047473,10]
[391537431,1760634638745,-500.0,0.00047473,10]
[391537432,1760634638754,-627.59140934,0.00047733,2]
[391537433,1760634638764,-500.0,0.000478,60]
[391537434,1760634638773,-500.0,0.00047973,10]
[391537435,1760634638783,-500.0,0.00047973,10]
[391537436,1760634638792,-500.0,0.00047973,10]
[391537437,1760634638802,-502.958487,0.00047973,10]
[391537438,1760634638811,-409.17640987,0.00047973,5]
[391537439,1760634638823,-500.0,0.00047973,10]
[391537440,1760634638834,-503.41227825,0.00047973,10]
[391537441,1760634638844,-500.0,0.00047973,7]
[391537442,1760634638855,-500.0,0.00047973,10]
[391537443,1760634638866,-33565.539158,0.0004799,4]
[391537444,1760634638877,-100000.0,0.00048,30]
[391537445,1760634638888,-1000.0,0.00048,120]
[391537446,1760634638898,-160.0,0.00048,30]
[391537447,1760634638908,-500.0,0.00048348,60]
[391537448,1760634638920,-1000.0,0.00048521,10]
[391537449,1760634638931,-501.32292699,0.00048521,10]
[391537450,1760634638941,-1004.27827385,0.00048521,10]
[391537451,1760634638951,-1000.0,0.00048521,7]
[391537452,1760634638960,-163.163466,0.00048674,60]
[391537453,1760634638971,-1129.19,0.000487,14]
[391537454,1760634638981,-500.0,0.00048896,60]
[391537455,1760634638992,-1000.0,0.00049,120]
[391537456,1760634639002,-166.0,0.00049,90]
[391537457,1760634639012,-503.92937964,0.00049068,10]
[391537458,1760634639022,-1500.0,0.00049068,7]
[391537459,1760634639033,-8746.38,0.000491,49]
[391537460,1760634639043,-505.39,0.000491,7]
[391537461,1760634639052,-44312.70700848,0.00049244,120]
[391537462,1760634639062,-177.72481321,0.00049265,41]
[391537463,1760634639076,-1000.0,0.000493,120]
[391537464,1760634639087,-16782.769579,0.00049305,4]
[391537465,1760634639097,-507.62013432,0.00049315,120]
[391537466,1760634639107,-500.0,0.00049315,120]
[391537467,1760634639117,-435.4,0.00049315,120]
[391537468,1760634639127,-500.0,0.00049315,120]
[391537469,1760634639137,-605.5,0.00049315,120]
[391537470,1760634639147,-500.0,0.00049315,120]
[391537471,1760634639158,-500.0,0.00049315,120]
[391537472,1760634639167,-500.0,0.00049315,120]
[391537473,1760634639178,-500.0,0.00049315,120]
[391537474,1760634639187,-500.90624379,0.00049315,120]
[391537475,1760634639199,-500.0,0.00049315,120]
[391537476,1760634639209,-500.0,0.00049315,120]
[391537477,1760634639219,-500.0,0.00049315,120]
[391537478,1760634639230,-500.0,0.00049315,120]
[391537479,1760634639240,-500.76029854,0.00049315,120]
[391537480,1760634639250,-421.83406148,0.00049315,120]
[391537481,1760634639260,-500.80769288,0.00049315,120]
[391537482,1760634639271,-500.0,0.00049315,120]
[391537483,1760634639281,-500.0,0.00049315,120]
[391537484,1760634639291,-500.0,0.00049315,120]
[391537485,1760634639300,-500.0,0.00049315,120]
[391537486,1760634639310,-500.0,0.00049315,120]
[391537487,1760634639324,-500.0,0.00049315,120]
[391537488,1760634639335,-500.0,0.00049315,120]
[391537490,1760634639346,-500.0,0.00049315,120]
[391537492,1760634639355,-500.0,0.00049315,120]
[391537494,1760634639365,-500.0,0.00049315,120]
[391537495,1760634639374,-500.0,0.00049315,120]
[391537496,1760634639384,-1026.59,0.00049315,120]
[391537498,1760634639393,-500.0,0.00049315,120]
[391537499,1760634639402,-1598.35,0.00049315,120]
[391537501,1760634639411,-500.0,0.00049315,120]
[391537503,1760634639420,-500.0,0.00049315,120]
[391537505,1760634639430,-500.0,0.00049315,120]
[391537506,1760634639439,-463.06402748,0.00049315,120]
[391537508,1760634639449,-500.0,0.00049315,120]
[391537509,1760634639458,-500.0,0.00049315,120]
[391537511,1760634639467,-328.64473725,0.00049315,120]
[391537512,1760634639477,-389.24157353,0.00049315,120]
[391537513,1760634639486,-500.00543731,0.00049315,120]
[391537514,1760634639496,-179.51765596,0.00049315,120]
[391537516,1760634639505,-500.0,0.00049315,120]
[391537517,1760634639515,-643.31,0.00049315,120]
[391537518,1760634639524,-628.20353952,0.00049315,120]
[391537519,1760634639534,-732.29,0.00049315,120]
[391537520,1760634639543,-500.0,0.00049315,120]
[391537521,1760634639553,-500.0,0.00049315,120]
[391537522,1760634639562,-500.0,0.00049315,120]
[391537523,1760634639576,-482.27098122,0.00049315,120]
[391537524,1760634639586,-501.39167991,0.00049315,120]
[391537525,1760634639595,-500.0,0.00049315,120]
[391537526,1760634639605,-500.0,0.00049315,120]
[391537527,1760634639614,-500.0,0.00049315,120]
[391537528,1760634639624,-500.0,0.00049315,120]
[391537529,1760634639633,-500.0,0.00049315,15]
[391537530,1760634639642,-554.66,0.00049315,120]
[391537531,1760634639651,-500.0,0.00049315,21]
[391537532,1760634639660,-500.0,0.00049315,120]
[391537533,1760634639670,-430.10144161,0.00049315,120]
[391537534,1760634639680,-500.0,0.00049315,120]
[391537535,1760634639690,-500.0,0.00049315,120]
[391537536,1760634639704,-500.0,0.00049315,120]
[391537537,1760634639715,-500.0,0.00049315,120]
[391537538,1760634639725,-500.0,0.00049315,120]
[391537539,1760634639735,-1569.89,0.00049315,120]
[391537540,1760634639744,-448.9789228,0.00049315,120]
[391537541,1760634639753,-500.0,0.00049315,120]
[391537542,1760634639763,-500.0,0.00049315,120]
[391537543,1760634639772,-500.0,0.00049315,120]
[391537544,1760634639781,-500.0,0.00049315,120]
[391537545,1760634639790,-643.3462637,0.00049315,120]
[391537546,1760634639799,-264.73331242,0.00049315,120]
[391537547,1760634639808,-500.0,0.00049315,120]
[391537548,1760634639819,-1247.5,0.00049315,120]
[391537549,1760634639828,-500.0,0.00049315,120]
[391537550,1760634639837,-643.62,0.00049315,120]
[391537551,1760634639847,-500.0,0.00049315,120]
[391537553,1760634639856,-343.73702116,0.00049315,120]
[391537555,1760634639865,-500.0,0.00049315,120]
[391537556,1760634639874,-833.33,0.00049315,120]
[391537558,1760634639884,-500.0,0.00049315,120]
[391537560,1760634639893,-500.0,0.00049315,120]
[391537561,1760634639903,-500.0,0.00049315,120]
[391537563,1760634639912,-500.0,0.00049315,120]
[391537564,1760634639922,-500.0,0.00049315,120]
[391537565,1760634639930,-500.0,0.00049315,120]
[391537566,1760634639940,-500.0,0.00049315,120]
[391537567,1760634639949,-500.0,0.00049315,120]
[391537568,1760634639959,-500.0,0.00049315,120]
[391537569,1760634639968,-387.24,0.00049315,120]
[391537570,1760634639978,-627.59140934,0.00049344,2]
[391537571,1760634639987,-15058.92434652,0.00049344,2]
[391537572,1760634639997,-370000.0,0.00049344,2]
[391537573,1760634640006,-154.61746598,0.00049365,120]
[391537574,1760634640015,-159.380575,0.000494,2]
[391537575,1760634640024,-163.163466,0.000494,2]
[391537576,1760634640033,-4411.3297675,0.00049407,2]
[391537577,1760634640043,-4294.5379143,0.0004944,2]
[391537578,1760634640052,-274.3944092,0.0004944,2]
[391537579,1760634640062,-3090.4952165,0.0004944,2]
[391537580,1760634640074,-546.9243131,0.0004944,2]
[391537581,1760634640083,-411.81901076,0.00049443,30]
[391537582,1760634640093,-250.0,0.00049443,30]
[391537583,1760634640102,-250.0,0.00049443,30]
[391537584,1760634640112,-250.0,0.00049443,30]
[391537585,1760634640121,-250.0,0.00049443,30]
[391537586,1760634640131,-250.0,0.00049443,30]
[391537587,1760634640140,-250.0,0.00049443,30]
[391537588,1760634640150,-500.0,0.00049444,30]
[391537589,1760634640159,-31511.3879,0.00049444,30]
[391537590,1760634640168,-500.0,0.00049444,120]
[391537591,1760634640177,-500.0,0.00049444,120]
[391537592,1760634640186,-500.0,0.00049444,120]
[391537593,1760634640197,-500.0,0.00049444,120]
[391537594,1760634640208,-500.0,0.00049444,120]
[391537595,1760634640218,-500.0,0.00049444,120]
[391537596,1760634640227,-500.0,0.00049444,120]
[391537597,1760634640236,-500.0,0.00049444,120]
[391537598,1760634640246,-500.0,0.00049444,120]
[391537599,1760634640255,-500.0,0.00049444,120]
[391537600,1760634640264,-500.0,0.00049444,120]
[391537601,1760634640275,-500.0,0.00049444,120]
[391537602,1760634640285,-500.0,0.00049444,120]
[391537603,1760634640295,-500.0,0.00049444,120]
[391537604,1760634640304,-500.0,0.00049444,120]
[391537605,1760634640313,-500.0,0.00049444,120]
[391537606,1760634640432,-500.0,0.00049444,120]
[391537607,1760634640442,-500.0,0.00049444,120]
[391537608,1760634640451,-500.0,0.00049444,120]
[391537609,1760634640460,-499.97,0.00049444,120]
[391537610,1760634640469,-437617.48684091,0.00049444,30]
[391537654,1760634642796,-510.1,0.00049315,120]
[391537655,1760634642806,-223735.95327295,0.00049444,30]
[391537667,1760634645684,-500.0,0.00049315,120]
[391537668,1760634645694,-478236.32638614,0.00049444,30]
[391537669,1760634645704,-500.0,0.00049473,10]
[391537670,1760634645713,-500.0,0.00049473,10]
[391537671,1760634645723,-500.0,0.00049473,10]
[391537672,1760634645732,-500.0,0.00049473,10]
[391537673,1760634645742,-2400.50625104,0.00049474,12]
[391537674,1760634645752,-2000.0,0.000495,120]
[391537675,1760634645761,-1000.0,0.000495,120]
[391537676,1760634645771,-1000.0,0.0004953,90]
[391537677,1760634645781,-244.0,0.0004953,90]
[391537678,1760634645791,-205.7,0.00049542,60]
[391537679,1760634645802,-234.24487279,0.00049589,120]
[391537680,1760634645821,-500.0,0.00049589,120]
[391537681,1760634645830,-605.57351798,0.00049589,120]
[391537682,1760634645841,-500.0,0.00049589,120]
[391537683,1760634645851,-500.0,0.00049589,120]
[391537684,1760634645860,-500.0,0.00049589,120]
[391537685,1760634645869,-500.0,0.00049589,120]
[391537686,1760634645878,-500.0,0.00049589,120]
[391537687,1760634645888,-500.0,0.00049589,120]
[391537688,1760634645897,-500.0,0.00049589,120]
[391537689,1760634645907,-1026.59,0.00049589,120]
[391537690,1760634645916,-1598.35,0.00049589,120]
[391537691,1760634645925,-239.50747893,0.00049589,120]
[391537692,1760634645935,-500.0,0.00049589,120]
[391537693,1760634645944,-732.29,0.00049589,120]
[391537694,1760634645954,-500.0,0.00049589,120]
[391537695,1760634645964,-500.0,0.00049589,120]
[391537696,1760634645974,-500.0,0.00049589,120]
[391537697,1760634645983,-500.0,0.00049589,120]
[391537698,1760634645992,-500.0,0.00049589,15]
[391537699,1760634646003,-554.66,0.00049589,120]
[391537700,1760634646012,-500.0,0.00049589,21]
[391537701,1760634646022,-500.0,0.00049589,120]
[391537702,1760634646031,-504.40504094,0.00049589,120]
[391537703,1760634646040,-500.0,0.00049589,120]
[391537704,1760634646049,-500.0,0.00049589,120]
[391537705,1760634646059,-187.06181234,0.00049589,120]
[391537706,1760634646069,-1569.89,0.00049589,120]
[391537707,1760634646080,-500.0,0.00049589,120]
[391537708,1760634646091,-500.0,0.00049589,120]
[391537709,1760634646101,-528.39482254,0.00049589,120]
[391537710,1760634646110,-500.0,0.00049589,120]
[391537711,1760634646120,-1247.5,0.00049589,120]
[391537712,1760634646130,-500.0,0.00049589,120]
[391537713,1760634646140,-546.03407583,0.00049589,120]
[391537714,1760634646149,-500.7,0.00049589,120]
[391537715,1760634646159,-833.33,0.00049589,120]
[391537716,1760634646169,-500.0,0.00049589,120]
[391537717,1760634646178,-219.74,0.00049589,120]
[391537718,1760634646188,-500.0,0.00049589,120]
[391537719,1760634646201,-500.0,0.00049589,120]
[391537721,1760634646211,-500.0,0.00049589,120]
[391537722,1760634646220,-500.0,0.00049589,120]
[391537724,1760634646229,-500.0,0.00049589,120]
[391537726,1760634646239,-30000.0,0.000496,120]
[391537728,1760634646248,-2483.38,0.00049635,2]
[391537730,1760634646258,-1484.83,0.000497,14]
[391537731,1760634646268,-17492.7,0.000497,50]
[391537733,1760634646279,-30000.0,0.000498,120]
[391537736,1760634646288,-500.0,0.00049863,120]
[391537737,1760634646297,-500.0,0.00049863,120]
[391537739,1760634646307,-500.0,0.00049863,120]
[391537741,1760634646317,-500.0,0.00049863,120]
[391537743,1760634646328,-1026.59,0.00049863,120]
[391537745,1760634646337,-1598.35,0.00049863,120]
[391537747,1760634646346,-500.0,0.00049863,120]
[391537749,1760634646355,-732.29,0.00049863,120]
[391537751,1760634646364,-500.0,0.00049863,120]
[391537753,1760634646373,-500.0,0.00049863,120]
[391537754,1760634646382,-500.0,0.00049863,15]
[391537756,1760634646392,-554.66,0.00049863,120]
[391537757,1760634646401,-500.0,0.00049863,21]
[391537759,1760634646411,-500.0,0.00049863,120]
[391537761,1760634646420,-503.78122178,0.00049863,120]
[391537763,1760634646430,-1569.89,0.00049863,120]
[391537765,1760634646439,-505.26675871,0.00049863,120]
[391537766,1760634646450,-505.53315587,0.00049863,120]
[391537768,1760634646460,-500.0,0.00049863,120]
[391537770,1760634646470,-500.0,0.00049863,120]
[391537772,1760634646479,-1247.5,0.00049863,120]
[391537774,1760634646492,-500.0,0.00049863,120]
[391537776,1760634646502,-833.33,0.00049863,120]
[391537778,1760634646511,-500.0,0.00049863,120]
[391537780,1760634646521,-500.0,0.00049863,120]
[391537782,1760634646530,-500.0,0.00049863,120]
[391537783,1760634646540,-500.0,0.00049863,120]
[391537785,1760634646550,-500.0,0.00049863,120]
[391537788,1760634646560,-151.0,0.000499,26]
[391537789,1760634646570,-151.0,0.000499,23]
[391537791,1760634646579,-500.0,0.00049992,60]
[391537793,1760634646589,-1000.0,0.00049999,120]
[391537795,1760634646599,-1000.0,0.0005,120]
[391537797,1760634646608,-300.0,0.0005,120]
[391537799,1760634646617,-3276.47572255,0.0005,5]
[391537801,1760634646627,-531.14316091,0.0005,10]
[391537803,1760634646637,-199.0,0.0005,7]
[391537805,1760634646647,-2498.27794168,0.0005,120]
[391537806,1760634646658,-220.69185211,0.0005,20]
[391537808,1760634646668,-550.39804754,0.0005,120]
[391537810,1760634646678,-12987.04970486,0.0005,48]
[391537812,1760634646690,-40056.96615201,0.0005,2]
[391537814,1760634646701,-2000.0,0.0005,120]
[391537816,1760634646711,-1000.0,0.0005,120]
[391537818,1760634646720,-1064.01940391,0.0005,120]
[391537820,1760634646729,-1000.0,0.0005,120]
[391537822,1760634646739,-21747.34895071,0.0005,30]
[391537824,1760634646748,-18280.64098187,0.0005,120]
[391537825,1760634646757,-100009.74,0.0005,120]
[391537827,1760634646767,-14001.33734839,0.0005,120]
[391537829,1760634646776,-20610.15095758,0.0005,120]
[391537830,1760634646785,-100000.0,0.0005,30]
[391537831,1760634646794,-500.0,0.00050021,10]
[391537832,1760634646804,-1000.0,0.00050021,10]
[391537833,1760634646813,-203.09792972,0.00050136,120]
[391537834,1760634646823,-500.00000003,0.00050136,120]
[391537835,1760634646833,-444.93055016,0.00050136,120]
[391537836,1760634646842,-500.0,0.00050136,120]
[391537837,1760634646852,-1026.59,0.00050136,120]
[391537838,1760634646861,-1598.35,0.00050136,120]
[391537839,1760634646870,-500.0,0.00050136,120]
[391537840,1760634646880,-732.29,0.00050136,120]
[391537841,1760634646890,-500.0,0.00050136,120]
[391537842,1760634646900,-576.91932274,0.00050136,120]
[391537843,1760634646910,-500.0,0.00050136,15]
[391537844,1760634646920,-554.66,0.00050136,120]
[391537845,1760634646929,-500.0,0.00050136,21]
[391537846,1760634646938,-500.0,0.00050136,120]
[391537847,1760634646948,-1569.89,0.00050136,120]
[391537848,1760634646958,-500.0,0.00050136,120]
[391537849,1760634646967,-500.0,0.00050136,120]
[391537850,1760634646977,-1247.5,0.00050136,120]
[391537851,1760634646987,-500.0,0.00050136,120]